[Event "Titled Tuesday Blitz January 31 Early 2023"]
[White "Sowul, Bartosz"]
[Black "Berezin, Viktor"]
[WhiteFideId "1137590"]
[BlackFideId "14107872"]
[WhiteElo "2269"]
[BlackElo "2307"]
[Result "1/2-1/2"]
[Round "09"]
[TimeControl "180+2"]
[Date "2023.01.31"]
[WhiteClock "0:00:20"]
[BlackClock "0:00:05"]

1. e4 {[%clk 0:02:59]}  g6 {[%clk 0:02:59]} 2. d4 {[%clk 0:02:58]}  Bg7 {[%clk 0:02:59]} 3. Nc3 {[%clk 0:02:58]}  d6 {[%clk 0:02:59]} 4. Be3 {[%clk 0:02:58]}  Nf6 {[%clk 0:02:56]} 5. Qd2 {[%clk 0:02:58]}  O-O {[%clk 0:02:56]} 6. Bh6 {[%clk 0:02:43]}  c6 {[%clk 0:02:55]} 7. Bxg7 {[%clk 0:02:38]}  Kxg7 {[%clk 0:02:53]} 8. Nf3 {[%clk 0:02:39]}  Bg4 {[%clk 0:02:51]} 9. O-O-O {[%clk 0:02:32]}  Bxf3 {[%clk 0:02:45]} 10. gxf3 {[%clk 0:02:32]}  Nbd7 {[%clk 0:02:44]} 11. f4 {[%clk 0:02:29]}  e5 {[%clk 0:02:41]} 12. dxe5 {[%clk 0:02:21]}  dxe5 {[%clk 0:02:41]} 13. f5 {[%clk 0:02:21]}  Qa5 {[%clk 0:02:38]} 14. Bd3 {[%clk 0:02:13]}  Nc5 {[%clk 0:02:34]} 15. Kb1 {[%clk 0:02:11]}  b5 {[%clk 0:02:32]} 16. Qe3 {[%clk 0:01:57]}  b4 {[%clk 0:02:29]} 17. Ne2 {[%clk 0:01:58]}  Rab8 {[%clk 0:02:12]} 18. h4 {[%clk 0:01:54]}  Na4 {[%clk 0:02:11]} 19. h5 {[%clk 0:01:40]}  Nc3+ {[%clk 0:02:02]} 20. Nxc3 {[%clk 0:01:35]}  bxc3 {[%clk 0:02:02]} 21. b3 {[%clk 0:01:35]}  Nxh5 {[%clk 0:01:55]} 22. Rxh5 {[%clk 0:01:30]}  Qa3 {[%clk 0:01:04]} 23. f6+ {[%clk 0:01:14]}  Kg8 {[%clk 0:00:45]} 24. Qc1 {[%clk 0:00:53]}  Qxc1+ {[%clk 0:00:44]} 25. Kxc1 {[%clk 0:00:54]}  gxh5 {[%clk 0:00:44]} 26. Rh1 {[%clk 0:00:51]}  h6 {[%clk 0:00:38]} 27. Rxh5 {[%clk 0:00:47]}  Kh7 {[%clk 0:00:37]} 28. Rxe5 {[%clk 0:00:47]}  Rbe8 {[%clk 0:00:20]} 29. Rc5 {[%clk 0:00:37]}  Kg6 {[%clk 0:00:07]} 30. e5+ {[%clk 0:00:30]}  Kg5 {[%clk 0:00:07]} 31. Rc4 {[%clk 0:00:27]}  Rxe5 {[%clk 0:00:07]} 32. f4+ {[%clk 0:00:27]}  Kxf6 {[%clk 0:00:06]} 33. fxe5+ {[%clk 0:00:28]}  Kxe5 {[%clk 0:00:07]} 34. Rxc6 {[%clk 0:00:28]}  Rh8 {[%clk 0:00:06]} 35. Rxc3 {[%clk 0:00:28]}  h5 {[%clk 0:00:07]} 36. Bf1 {[%clk 0:00:28]}  h4 {[%clk 0:00:07]} 37. Kd2 {[%clk 0:00:27]}  f5 {[%clk 0:00:07]} 38. Ke2 {[%clk 0:00:27]}  Kf4 {[%clk 0:00:07]} 39. Kf2 {[%clk 0:00:26]}  Kg4 {[%clk 0:00:06]} 40. Rc4+ {[%clk 0:00:25]}  Kg5 {[%clk 0:00:07]} 41. Bh3 {[%clk 0:00:25]}  Rd8 {[%clk 0:00:07]} 42. Bf1 {[%clk 0:00:22]}  Rd2+ {[%clk 0:00:06]} 43. Be2 {[%clk 0:00:23]}  h3 {[%clk 0:00:05]} 44. Rc8 {[%clk 0:00:20]}  f4 {[%clk 0:00:05]} 45. Rg8+ {[%clk 0:00:20]}  Kf6 {[%clk 0:00:04]} 46. Rh8 {[%clk 0:00:21]}  Rxc2 {[%clk 0:00:04]} 47. Rxh3 {[%clk 0:00:20]}  Rxa2 {[%clk 0:00:05]} 48. Kf3 {[%clk 0:00:21]}  Ke5 {[%clk 0:00:05]} 49. Bc4 {[%clk 0:00:21]}  a5 {[%clk 0:00:02]} 50. Rh5+ {[%clk 0:00:21]}  Kd4 {[%clk 0:00:03]} 51. Kxf4 {[%clk 0:00:21]}  a4 {[%clk 0:00:03]} 52. Rb5 {[%clk 0:00:18]}  axb3 {[%clk 0:00:02]} 53. Bxb3 {[%clk 0:00:18]}  Rb2 {[%clk 0:00:03]} 54. Rb8 {[%clk 0:00:19]}  Kc3 {[%clk 0:00:03]} 55. Rc8+ {[%clk 0:00:18]}  Kxb3 {[%clk 0:00:04]} 56. Rb8+ {[%clk 0:00:19]}  Ka3 {[%clk 0:00:04]} 57. Rxb2 {[%clk 0:00:20]}  Kxb2 {[%clk 0:00:05]} 1/2-1/2


[Site "https://www.chess.com"]

[Event "Titled Tuesday Blitz January 31 Early 2023"]
[White "Derjabin, Ilja"]
[Black "Gonzalez, Francisco Silva"]
[WhiteFideId "14104768"]
[BlackFideId "1512285"]
[WhiteElo "2333"]
[BlackElo "2021"]
[Result "1-0"]
[Round "09"]
[TimeControl "180+2"]
[Date "2023.01.31"]
[WhiteClock "0:00:14"]
[BlackClock "0:01:03"]

1. d4 {[%clk 0:02:41]}  Nf6 {[%clk 0:02:59]} 2. c4 {[%clk 0:02:41]}  e6 {[%clk 0:02:58]} 3. Nc3 {[%clk 0:02:17]}  Bb4 {[%clk 0:02:57]} 4. a3 {[%clk 0:02:17]}  Bxc3+ {[%clk 0:02:56]} 5. bxc3 {[%clk 0:02:18]}  Nc6 {[%clk 0:02:57]} 6. f3 {[%clk 0:02:18]}  b6 {[%clk 0:02:54]} 7. e4 {[%clk 0:02:17]}  d6 {[%clk 0:02:54]} 8. Bg5 {[%clk 0:02:17]}  h6 {[%clk 0:02:53]} 9. Bh4 {[%clk 0:02:16]}  e5 {[%clk 0:02:51]} 10. d5 {[%clk 0:01:56]}  Na5 {[%clk 0:02:50]} 11. g4 {[%clk 0:01:54]}  Ba6 {[%clk 0:02:47]} 12. Nh3 {[%clk 0:01:53]}  g5 {[%clk 0:02:42]} 13. Bg3 {[%clk 0:01:44]}  Nd7 {[%clk 0:02:41]} 14. Qa4 {[%clk 0:01:41]}  Ke7 {[%clk 0:02:40]} 15. Nf2 {[%clk 0:01:34]}  Nc5 {[%clk 0:02:40]} 16. Qb4 {[%clk 0:01:32]}  Bc8 {[%clk 0:02:25]} 17. h4 {[%clk 0:01:20]}  Nab3 {[%clk 0:02:23]} 18. Rb1 {[%clk 0:01:16]}  a5 {[%clk 0:02:23]} 19. Qxb3 {[%clk 0:01:12]}  Nxb3 {[%clk 0:02:22]} 20. Rxb3 {[%clk 0:01:13]}  Bd7 {[%clk 0:02:21]} 21. Nd3 {[%clk 0:01:09]}  Ba4 {[%clk 0:02:19]} 22. Rb2 {[%clk 0:01:09]}  f6 {[%clk 0:02:18]} 23. Rbh2 {[%clk 0:01:07]}  Rg8 {[%clk 0:02:16]} 24. hxg5 {[%clk 0:01:06]}  hxg5 {[%clk 0:02:15]} 25. Rh7+ {[%clk 0:01:06]}  Kf8 {[%clk 0:02:15]} 26. Kf2 {[%clk 0:00:44]}  Be8 {[%clk 0:02:13]} 27. Be2 {[%clk 0:00:19]}  Bg6 {[%clk 0:02:10]} 28. R7h2 {[%clk 0:00:18]}  Kg7 {[%clk 0:02:08]} 29. Bd1 {[%clk 0:00:19]}  Qd7 {[%clk 0:02:07]} 30. Nb2 {[%clk 0:00:19]}  Rh8 {[%clk 0:02:06]} 31. Ba4 {[%clk 0:00:18]}  Rxh2+ {[%clk 0:02:05]} 32. Rxh2 {[%clk 0:00:18]}  Qe7 {[%clk 0:02:03]} 33. Bc6 {[%clk 0:00:17]}  Rh8 {[%clk 0:02:03]} 34. a4 {[%clk 0:00:17]}  Qf8 {[%clk 0:02:01]} 35. Nd3 {[%clk 0:00:15]}  Rxh2+ {[%clk 0:02:00]} 36. Bxh2 {[%clk 0:00:15]}  Qh8 {[%clk 0:02:01]} 37. Kg2 {[%clk 0:00:13]}  Be8 {[%clk 0:01:57]} 38. Bb5 {[%clk 0:00:13]}  Bxb5 {[%clk 0:01:56]} 39. cxb5 {[%clk 0:00:14]}  Kf7 {[%clk 0:01:47]} 40. Nf2 {[%clk 0:00:14]}  Ke7 {[%clk 0:01:41]} 41. Nd1 {[%clk 0:00:13]}  c6 {[%clk 0:01:38]} 42. dxc6 {[%clk 0:00:11]}  d5 {[%clk 0:01:38]} 43. exd5 {[%clk 0:00:08]}  Kd6 {[%clk 0:01:38]} 44. Ne3 {[%clk 0:00:08]}  Qh7 {[%clk 0:01:35]} 45. c4 {[%clk 0:00:07]}  Qb1 {[%clk 0:01:34]} 46. Bg1 {[%clk 0:00:06]}  Qa2+ {[%clk 0:01:33]} 47. Bf2 {[%clk 0:00:07]}  Qxa4 {[%clk 0:01:32]} 48. Nf5+ {[%clk 0:00:07]}  Kc7 {[%clk 0:01:31]} 49. d6+ {[%clk 0:00:08]}  Kc8 {[%clk 0:01:31]} 50. d7+ {[%clk 0:00:08]}  Kc7 {[%clk 0:01:29]} 51. Bxb6+ {[%clk 0:00:08]}  Kxb6 {[%clk 0:01:29]} 52. d8=Q+ {[%clk 0:00:09]}  Kc5 {[%clk 0:01:27]} 53. Qd6+ {[%clk 0:00:09]}  Kxc4 {[%clk 0:01:27]} 54. c7 {[%clk 0:00:09]}  Qc2+ {[%clk 0:01:26]} 55. Kg3 {[%clk 0:00:09]}  Kxb5 {[%clk 0:01:27]} 56. Qd5+ {[%clk 0:00:08]}  Kb6 {[%clk 0:01:26]} 57. Qd6+ {[%clk 0:00:09]}  Kb7 {[%clk 0:01:25]} 58. Qd5+ {[%clk 0:00:07]}  Kxc7 {[%clk 0:01:24]} 59. Qxa5+ {[%clk 0:00:08]}  Kd7 {[%clk 0:01:22]} 60. Qa7+ {[%clk 0:00:07]}  Qc7 {[%clk 0:01:21]} 61. Qxc7+ {[%clk 0:00:07]}  Kxc7 {[%clk 0:01:21]} 62. Kf2 {[%clk 0:00:07]}  Kc6 {[%clk 0:01:21]} 63. Ke3 {[%clk 0:00:08]}  Kd5 {[%clk 0:01:21]} 64. Ng3 {[%clk 0:00:09]}  Ke6 {[%clk 0:01:14]} 65. Ke4 {[%clk 0:00:10]}  Kf7 {[%clk 0:01:07]} 66. Kf5 {[%clk 0:00:10]}  Ke7 {[%clk 0:01:06]} 67. Ne4 {[%clk 0:00:11]}  Kd7 {[%clk 0:01:03]} 68. Nxf6+ {[%clk 0:00:12]}  Kd6 {[%clk 0:01:03]} 69. Ne4+ {[%clk 0:00:12]}  Kd5 {[%clk 0:01:04]} 70. Nxg5 {[%clk 0:00:13]}  e4 {[%clk 0:01:03]} 71. Nxe4 {[%clk 0:00:14]} 1-0


[Site "https://www.chess.com"]

[Event "Titled Tuesday Blitz January 31 Early 2023"]
[White "Santos Flores, Alberto"]
[Black "Hoffmann, Asa"]
[WhiteFideId "3601234"]
[BlackFideId "2001470"]
[WhiteElo "2164"]
[BlackElo "2185"]
[Result "1-0"]
[Round "09"]
[TimeControl "180+2"]
[Date "2023.01.31"]
[WhiteClock "0:01:02"]
[BlackClock "0:00:06"]

1. e4 {[%clk 0:03:00]}  d6 {[%clk 0:02:59]} 2. d4 {[%clk 0:03:01]}  Nf6 {[%clk 0:02:56]} 3. Nc3 {[%clk 0:03:01]}  c6 {[%clk 0:02:55]} 4. Be3 {[%clk 0:02:59]}  Ng4 {[%clk 0:02:54]} 5. Bc1 {[%clk 0:02:56]}  e5 {[%clk 0:02:52]} 6. Nf3 {[%clk 0:02:56]}  Qc7 {[%clk 0:02:50]} 7. Bc4 {[%clk 0:02:55]}  Be7 {[%clk 0:02:49]} 8. a4 {[%clk 0:02:54]}  O-O {[%clk 0:02:43]} 9. O-O {[%clk 0:02:54]}  a5 {[%clk 0:02:42]} 10. Re1 {[%clk 0:02:53]}  Na6 {[%clk 0:02:40]} 11. h3 {[%clk 0:02:50]}  Nf6 {[%clk 0:02:39]} 12. Bg5 {[%clk 0:02:50]}  h6 {[%clk 0:02:39]} 13. Be3 {[%clk 0:02:45]}  Be6 {[%clk 0:02:37]} 14. Bxe6 {[%clk 0:02:43]}  fxe6 {[%clk 0:02:37]} 15. dxe5 {[%clk 0:02:44]}  dxe5 {[%clk 0:02:36]} 16. Nd2 {[%clk 0:02:42]}  Bc5 {[%clk 0:02:33]} 17. Qe2 {[%clk 0:02:40]}  Bxe3 {[%clk 0:02:26]} 18. Qxe3 {[%clk 0:02:41]}  Nb4 {[%clk 0:02:25]} 19. Rac1 {[%clk 0:02:33]}  Nh5 {[%clk 0:02:24]} 20. Ne2 {[%clk 0:02:31]}  Nf4 {[%clk 0:02:23]} 21. Nxf4 {[%clk 0:02:29]}  exf4 {[%clk 0:02:21]} 22. Qb3 {[%clk 0:02:29]}  Rae8 {[%clk 0:02:14]} 23. Rcd1 {[%clk 0:02:25]}  Qe5 {[%clk 0:02:11]} 24. Nf3 {[%clk 0:02:24]}  Qh5 {[%clk 0:02:10]} 25. c3 {[%clk 0:02:22]}  Na6 {[%clk 0:02:09]} 26. Qxb7 {[%clk 0:02:21]}  Nb8 {[%clk 0:01:57]} 27. b4 {[%clk 0:02:07]}  Rf7 {[%clk 0:01:54]} 28. Qb6 {[%clk 0:02:05]}  g5 {[%clk 0:01:40]} 29. Qxa5 {[%clk 0:01:57]}  Qg6 {[%clk 0:01:34]} 30. Rd8 {[%clk 0:01:55]}  Rxd8 {[%clk 0:01:28]} 31. Qxd8+ {[%clk 0:01:55]}  Rf8 {[%clk 0:01:28]} 32. Ne5 {[%clk 0:01:40]}  Qg7 {[%clk 0:01:03]} 33. Qd6 {[%clk 0:01:39]}  f3 {[%clk 0:01:00]} 34. Qxe6+ {[%clk 0:01:38]}  Kh7 {[%clk 0:00:59]} 35. Nxf3 {[%clk 0:01:37]}  Qxc3 {[%clk 0:00:57]} 36. Qe7+ {[%clk 0:01:35]}  Kg8 {[%clk 0:00:55]} 37. Rd1 {[%clk 0:01:31]}  Qc2 {[%clk 0:00:37]} 38. Rd8 {[%clk 0:01:14]}  Qc1+ {[%clk 0:00:34]} 39. Kh2 {[%clk 0:01:14]}  Qf4+ {[%clk 0:00:33]} 40. Kh1 {[%clk 0:01:15]}  Qc1+ {[%clk 0:00:32]} 41. Ng1 {[%clk 0:01:15]}  Qf4 {[%clk 0:00:21]} 42. Qxf8+ {[%clk 0:01:11]}  Qxf8 {[%clk 0:00:20]} 43. Rxf8+ {[%clk 0:01:12]}  Kxf8 {[%clk 0:00:20]} 44. Ne2 {[%clk 0:01:09]}  Na6 {[%clk 0:00:20]} 45. b5 {[%clk 0:01:09]}  cxb5 {[%clk 0:00:20]} 46. axb5 {[%clk 0:01:10]}  Nc5 {[%clk 0:00:20]} 47. Nc3 {[%clk 0:01:08]}  Ke7 {[%clk 0:00:19]} 48. g3 {[%clk 0:01:08]}  Kd7 {[%clk 0:00:19]} 49. f4 {[%clk 0:01:08]}  gxf4 {[%clk 0:00:17]} 50. gxf4 {[%clk 0:01:09]}  Nd3 {[%clk 0:00:17]} 51. f5 {[%clk 0:01:06]}  Kd6 {[%clk 0:00:16]} 52. Kg2 {[%clk 0:01:06]}  Ne5 {[%clk 0:00:14]} 53. Kg3 {[%clk 0:01:05]}  Nd7 {[%clk 0:00:12]} 54. Kf4 {[%clk 0:01:05]}  Nc5 {[%clk 0:00:09]} 55. e5+ {[%clk 0:01:03]}  Ke7 {[%clk 0:00:08]} 56. b6 {[%clk 0:01:02]}  Nb7 {[%clk 0:00:07]} 57. Nd5+ {[%clk 0:01:01]}  Kf7 {[%clk 0:00:06]} 58. e6+ {[%clk 0:01:01]}  Ke8 {[%clk 0:00:06]} 59. f6 {[%clk 0:01:02]} 1-0


[Site "https://www.chess.com"]

[Event "Titled Tuesday Blitz January 31 Early 2023"]
[White "Lopez Idarraga, Daniel Eduardo"]
[Black "Rangel, Daniel"]
[WhiteFideId "4405501"]
[BlackFideId "2124475"]
[WhiteElo "2009"]
[BlackElo "2207"]
[Result "1/2-1/2"]
[Round "09"]
[TimeControl "180+2"]
[Date "2023.01.31"]
[WhiteClock "0:00:26"]
[BlackClock "0:00:04"]

1. Nf3 {[%clk 0:03:00]}  Nf6 {[%clk 0:02:58]} 2. b3 {[%clk 0:03:01]}  g6 {[%clk 0:02:58]} 3. Bb2 {[%clk 0:03:02]}  Bg7 {[%clk 0:02:59]} 4. e3 {[%clk 0:03:02]}  O-O {[%clk 0:02:59]} 5. Be2 {[%clk 0:03:03]}  d5 {[%clk 0:03:00]} 6. O-O {[%clk 0:03:03]}  c5 {[%clk 0:03:01]} 7. d4 {[%clk 0:03:03]}  Nc6 {[%clk 0:03:01]} 8. c4 {[%clk 0:03:02]}  cxd4 {[%clk 0:02:59]} 9. Nxd4 {[%clk 0:03:03]}  Bd7 {[%clk 0:02:47]} 10. cxd5 {[%clk 0:03:02]}  Nxd5 {[%clk 0:02:46]} 11. Nxc6 {[%clk 0:03:02]}  Bxc6 {[%clk 0:02:46]} 12. Bxg7 {[%clk 0:03:02]}  Kxg7 {[%clk 0:02:47]} 13. Qd2 {[%clk 0:02:57]}  Nf6 {[%clk 0:02:41]} 14. Rd1 {[%clk 0:02:55]}  Qxd2 {[%clk 0:02:32]} 15. Rxd2 {[%clk 0:02:56]}  Rac8 {[%clk 0:02:31]} 16. Na3 {[%clk 0:02:52]}  Ne4 {[%clk 0:02:29]} 17. Rd4 {[%clk 0:02:48]}  Nc3 {[%clk 0:02:21]} 18. Bf1 {[%clk 0:02:42]}  e5 {[%clk 0:02:20]} 19. Rc4 {[%clk 0:02:40]}  Bd5 {[%clk 0:02:16]} 20. Rxc8 {[%clk 0:02:37]}  Rxc8 {[%clk 0:02:17]} 21. Nc4 {[%clk 0:02:35]}  Bxc4 {[%clk 0:01:52]} 22. Bxc4 {[%clk 0:02:36]}  b5 {[%clk 0:01:52]} 23. Bf1 {[%clk 0:02:32]}  Rd8 {[%clk 0:01:38]} 24. a3 {[%clk 0:02:23]}  Rd2 {[%clk 0:01:10]} 25. Rc1 {[%clk 0:02:20]}  Ne4 {[%clk 0:00:47]} 26. Bxb5 {[%clk 0:02:11]}  Nxf2 {[%clk 0:00:45]} 27. Rc7 {[%clk 0:02:04]}  Ng4 {[%clk 0:00:43]} 28. g3 {[%clk 0:01:58]}  Nxh2 {[%clk 0:00:26]} 29. Bc6 {[%clk 0:01:28]}  Rc2 {[%clk 0:00:20]} 30. Rxa7 {[%clk 0:01:25]}  Rxc6 {[%clk 0:00:14]} 31. Kxh2 {[%clk 0:01:24]}  Rc3 {[%clk 0:00:15]} 32. Rb7 {[%clk 0:01:23]}  Rxe3 {[%clk 0:00:14]} 33. a4 {[%clk 0:01:24]}  Re2+ {[%clk 0:00:14]} 34. Kg1 {[%clk 0:01:23]}  Ra2 {[%clk 0:00:15]} 35. Rb5 {[%clk 0:01:19]}  e4 {[%clk 0:00:15]} 36. a5 {[%clk 0:01:20]}  Ra3 {[%clk 0:00:15]} 37. b4 {[%clk 0:01:19]}  Rxg3+ {[%clk 0:00:14]} 38. Kf2 {[%clk 0:01:20]}  Ra3 {[%clk 0:00:15]} 39. Rb6 {[%clk 0:01:20]}  h5 {[%clk 0:00:15]} 40. a6 {[%clk 0:01:20]}  h4 {[%clk 0:00:14]} 41. b5 {[%clk 0:01:13]}  h3 {[%clk 0:00:14]} 42. Rb7 {[%clk 0:01:11]}  Ra2+ {[%clk 0:00:14]} 43. Kg1 {[%clk 0:01:10]}  h2+ {[%clk 0:00:13]} 44. Kh1 {[%clk 0:01:10]}  e3 {[%clk 0:00:14]} 45. Re7 {[%clk 0:01:09]}  Ra5 {[%clk 0:00:11]} 46. Rxe3 {[%clk 0:00:27]}  Rxb5 {[%clk 0:00:11]} 47. Ra3 {[%clk 0:00:26]}  Rb8 {[%clk 0:00:10]} 48. a7 {[%clk 0:00:26]}  Ra8 {[%clk 0:00:10]} 49. Kxh2 {[%clk 0:00:26]}  Kf6 {[%clk 0:00:09]} 50. Kg3 {[%clk 0:00:27]}  Ke6 {[%clk 0:00:08]} 51. Kf4 {[%clk 0:00:27]}  Kd6 {[%clk 0:00:05]} 52. Kg5 {[%clk 0:00:27]}  Kc6 {[%clk 0:00:04]} 53. Kf6 {[%clk 0:00:27]}  Kb6 {[%clk 0:00:03]} 54. Kxf7 {[%clk 0:00:27]}  g5 {[%clk 0:00:04]} 55. Kf6 {[%clk 0:00:26]}  g4 {[%clk 0:00:04]} 56. Kf5 {[%clk 0:00:27]}  Rxa7 {[%clk 0:00:05]} 57. Rxa7 {[%clk 0:00:26]}  Kxa7 {[%clk 0:00:04]} 58. Kxg4 {[%clk 0:00:26]} 1/2-1/2


[Site "https://www.chess.com"]

[Event "Titled Tuesday Blitz January 31 Early 2023"]
[White "Golubev, Mikhail"]
[Black "Liimatainen, Jero"]
[WhiteFideId "14100983"]
[BlackFideId "509531"]
[WhiteElo "2461"]
[BlackElo "1948"]
[Result "1-0"]
[Round "09"]
[TimeControl "180+2"]
[Date "2023.01.31"]
[WhiteClock "0:00:04"]
[BlackClock "0:00:01"]

1. e4 {[%clk 0:02:54]}  c5 {[%clk 0:02:57]} 2. Nf3 {[%clk 0:02:54]}  d6 {[%clk 0:02:57]} 3. d4 {[%clk 0:02:54]}  cxd4 {[%clk 0:02:57]} 4. Nxd4 {[%clk 0:02:54]}  Nf6 {[%clk 0:02:58]} 5. Nc3 {[%clk 0:02:55]}  Nc6 {[%clk 0:02:58]} 6. Bc4 {[%clk 0:02:54]}  Bd7 {[%clk 0:02:57]} 7. Bb3 {[%clk 0:02:49]}  g6 {[%clk 0:02:56]} 8. Be3 {[%clk 0:02:47]}  Bg7 {[%clk 0:02:56]} 9. f3 {[%clk 0:02:47]}  O-O {[%clk 0:02:51]} 10. h4 {[%clk 0:02:45]}  Nxd4 {[%clk 0:02:19]} 11. Bxd4 {[%clk 0:02:45]}  Qa5 {[%clk 0:02:20]} 12. h5 {[%clk 0:02:25]}  Nxh5 {[%clk 0:02:19]} 13. Bxg7 {[%clk 0:02:23]}  Nxg7 {[%clk 0:02:14]} 14. Qd2 {[%clk 0:02:21]}  h5 {[%clk 0:02:01]} 15. O-O-O {[%clk 0:02:16]}  Rac8 {[%clk 0:01:57]} 16. g4 {[%clk 0:02:06]}  Kh7 {[%clk 0:01:20]} 17. gxh5 {[%clk 0:01:54]}  Nxh5 {[%clk 0:01:19]} 18. Rdg1 {[%clk 0:01:54]}  f6 {[%clk 0:01:08]} 19. Qg2 {[%clk 0:01:34]}  Be8 {[%clk 0:01:02]} 20. Rxh5+ {[%clk 0:01:28]}  Qxh5 {[%clk 0:01:00]} 21. Rh1 {[%clk 0:01:28]}  Qxh1+ {[%clk 0:01:01]} 22. Qxh1+ {[%clk 0:01:28]}  Kg7 {[%clk 0:01:01]} 23. Nd5 {[%clk 0:01:22]}  e5 {[%clk 0:00:54]} 24. Qg2 {[%clk 0:01:12]}  Rh8 {[%clk 0:00:37]} 25. a4 {[%clk 0:00:23]}  Bf7 {[%clk 0:00:36]} 26. Kb1 {[%clk 0:00:20]}  Bxd5 {[%clk 0:00:30]} 27. Bxd5 {[%clk 0:00:19]}  b6 {[%clk 0:00:30]} 28. Be6 {[%clk 0:00:16]}  Rc7 {[%clk 0:00:29]} 29. Bf5 {[%clk 0:00:16]}  g5 {[%clk 0:00:29]} 30. Be6 {[%clk 0:00:16]}  Re7 {[%clk 0:00:26]} 31. Bb3 {[%clk 0:00:15]}  Rd7 {[%clk 0:00:23]} 32. Qd2 {[%clk 0:00:15]}  Rh1+ {[%clk 0:00:22]} 33. Ka2 {[%clk 0:00:14]}  Rh8 {[%clk 0:00:20]} 34. Qd5 {[%clk 0:00:13]}  Rhd8 {[%clk 0:00:20]} 35. Qe6 {[%clk 0:00:12]}  Rc7 {[%clk 0:00:21]} 36. c3 {[%clk 0:00:10]}  Rb7 {[%clk 0:00:20]} 37. Bd5 {[%clk 0:00:09]}  Rc7 {[%clk 0:00:21]} 38. Qg4 {[%clk 0:00:08]}  Re7 {[%clk 0:00:20]} 39. Be6 {[%clk 0:00:07]}  Rc7 {[%clk 0:00:20]} 40. Bf5 {[%clk 0:00:08]}  Rh8 {[%clk 0:00:20]} 41. Qg2 {[%clk 0:00:06]}  Re7 {[%clk 0:00:21]} 42. Qd2 {[%clk 0:00:06]}  Rd8 {[%clk 0:00:19]} 43. Ka3 {[%clk 0:00:04]}  Rc7 {[%clk 0:00:20]} 44. Qd3 {[%clk 0:00:03]}  Re7 {[%clk 0:00:18]} 45. a5 {[%clk 0:00:03]}  bxa5 {[%clk 0:00:18]} 46. Qa6 {[%clk 0:00:03]}  Rb8 {[%clk 0:00:16]} 47. Qxa5 {[%clk 0:00:02]}  Reb7 {[%clk 0:00:16]} 48. b4 {[%clk 0:00:02]}  Re7 {[%clk 0:00:15]} 49. Qd5 {[%clk 0:00:02]}  Rd8 {[%clk 0:00:16]} 50. Kb3 {[%clk 0:00:02]}  Rc7 {[%clk 0:00:16]} 51. Qd3 {[%clk 0:00:02]}  Rc6 {[%clk 0:00:14]} 52. c4 {[%clk 0:00:03]}  Rb8 {[%clk 0:00:14]} 53. Qd5 {[%clk 0:00:02]}  Rcb6 {[%clk 0:00:13]} 54. b5 {[%clk 0:00:03]}  a6 {[%clk 0:00:14]} 55. Qe6 {[%clk 0:00:03]}  R8b7 {[%clk 0:00:11]} 56. Qe8 {[%clk 0:00:02]}  axb5 {[%clk 0:00:09]} 57. c5 {[%clk 0:00:02]}  dxc5 {[%clk 0:00:09]} 58. Be6 {[%clk 0:00:02]}  Rxe6 {[%clk 0:00:08]} 59. Qxe6 {[%clk 0:00:02]}  c4+ {[%clk 0:00:09]} 60. Kc2 {[%clk 0:00:01]}  b4 {[%clk 0:00:06]} 61. Qc6 {[%clk 0:00:01]}  b3+ {[%clk 0:00:07]} 62. Kb2 {[%clk 0:00:01]}  c3+ {[%clk 0:00:08]} 63. Qxc3 {[%clk 0:00:01]}  Rf7 {[%clk 0:00:07]} 64. Qc5 {[%clk 0:00:02]}  Rd7 {[%clk 0:00:07]} 65. Qc4 {[%clk 0:00:02]}  Rd4 {[%clk 0:00:07]} 66. Qc7+ {[%clk 0:00:02]}  Kg6 {[%clk 0:00:07]} 67. Qc8 {[%clk 0:00:03]}  Rd3 {[%clk 0:00:07]} 68. Qf5+ {[%clk 0:00:03]}  Kg7 {[%clk 0:00:07]} 69. Ka3 {[%clk 0:00:03]}  Re3 {[%clk 0:00:06]} 70. Qg4 {[%clk 0:00:03]}  Rd3 {[%clk 0:00:06]} 71. Qg2 {[%clk 0:00:04]}  Rd4 {[%clk 0:00:05]} 72. Qe2 {[%clk 0:00:04]}  Kg6 {[%clk 0:00:04]} 73. Kxb3 {[%clk 0:00:04]}  Kh5 {[%clk 0:00:04]} 74. f4+ {[%clk 0:00:02]}  Kg6 {[%clk 0:00:04]} 75. fxe5 {[%clk 0:00:03]}  fxe5 {[%clk 0:00:04]} 76. Qf3 {[%clk 0:00:03]}  Rd2 {[%clk 0:00:03]} 77. Qf5+ {[%clk 0:00:03]}  Kh5 {[%clk 0:00:02]} 78. Qxe5 {[%clk 0:00:04]}  Kh4 {[%clk 0:00:01]} 79. Qf6 {[%clk 0:00:04]}  Re2 {[%clk 0:00:01]} 80. e5 {[%clk 0:00:04]} 1-0


[Site "https://www.chess.com"]

[Event "Titled Tuesday Blitz January 31 Early 2023"]
[White "Ljukin, Sergei"]
[Black "Pavlidou, Ekaterini"]
[WhiteFideId "14102200"]
[BlackFideId "4213262"]
[WhiteElo "2362"]
[BlackElo "2088"]
[Result "1-0"]
[Round "09"]
[TimeControl "180+2"]
[Date "2023.01.31"]
[WhiteClock "0:01:23"]
[BlackClock "0:01:42"]

1. e4 {[%clk 0:02:58]}  c5 {[%clk 0:02:57]} 2. Nf3 {[%clk 0:02:58]}  e6 {[%clk 0:02:57]} 3. d4 {[%clk 0:02:58]}  cxd4 {[%clk 0:02:58]} 4. Nxd4 {[%clk 0:02:58]}  Nf6 {[%clk 0:02:58]} 5. Nc3 {[%clk 0:02:58]}  Nc6 {[%clk 0:02:58]} 6. Nxc6 {[%clk 0:02:58]}  bxc6 {[%clk 0:02:58]} 7. e5 {[%clk 0:02:58]}  Nd5 {[%clk 0:02:58]} 8. Ne4 {[%clk 0:02:58]}  Qc7 {[%clk 0:02:59]} 9. f4 {[%clk 0:02:58]}  Qb6 {[%clk 0:02:59]} 10. c4 {[%clk 0:02:54]}  Bb4+ {[%clk 0:02:58]} 11. Ke2 {[%clk 0:02:53]}  Ba6 {[%clk 0:02:58]} 12. Kf3 {[%clk 0:02:51]}  f5 {[%clk 0:02:58]} 13. exf6 {[%clk 0:02:47]}  Nxf6 {[%clk 0:02:57]} 14. Be3 {[%clk 0:02:47]}  c5 {[%clk 0:02:55]} 15. Nxf6+ {[%clk 0:02:09]}  gxf6 {[%clk 0:02:53]} 16. Kf2 {[%clk 0:02:09]}  Qc6 {[%clk 0:02:40]} 17. Be2 {[%clk 0:02:05]}  O-O-O {[%clk 0:02:33]} 18. Bf3 {[%clk 0:02:02]}  d5 {[%clk 0:02:27]} 19. a3 {[%clk 0:01:59]}  Ba5 {[%clk 0:02:22]} 20. cxd5 {[%clk 0:01:59]}  exd5 {[%clk 0:02:21]} 21. b4 {[%clk 0:01:59]}  Qc7 {[%clk 0:02:06]} 22. Bxc5 {[%clk 0:01:44]}  Bb6 {[%clk 0:02:05]} 23. Rc1 {[%clk 0:01:40]}  Bc4 {[%clk 0:02:04]} 24. Qd4 {[%clk 0:01:36]}  Rhe8 {[%clk 0:01:56]} 25. Rhe1 {[%clk 0:01:35]}  Re4 {[%clk 0:01:52]} 26. Bxe4 {[%clk 0:01:29]}  dxe4 {[%clk 0:01:51]} 27. Qxc4 {[%clk 0:01:28]}  Rd2+ {[%clk 0:01:42]} 28. Kg1 {[%clk 0:01:23]} 1-0


[Site "https://www.chess.com"]